bitfinex-derivatives/quotes_BNBF0:USTF0_20250510
["timestamp","ask_amount","ask_price","bid_price","bid_amount"]
[1746894183263,0.28056641,655.86,654.37,0.95047673]
[1746894183464,0.28056641,655.86,654.38,2.12535542]
[1746894183659,0.28056641,655.86,654.39,0.95047673]
[1746894183859,0.28056641,655.86,654.4,0.95047673]
[1746894184063,0.28056641,655.86,654.41,0.95047673]
[1746894184358,0.28056641,655.86,654.42,0.95047673]
[1746894184563,0.28056641,655.86,654.43,2.12535542]
[1746894184757,0.28056641,655.86,654.44,0.95047673]
[1746894184966,0.28056641,655.86,654.45,0.95047673]
[1746894185263,0.28056641,655.86,654.46,2.12535542]
[1746894185464,0.28056641,655.86,654.47,0.95047673]
[1746894185664,0.28056641,655.86,654.48,0.95047673]
[1746894185865,0.28056641,655.86,654.49,0.95047673]
[1746894186164,0.28056641,655.86,654.5,0.95220477]
[1746894186365,0.28056641,655.86,654.51,0.95220477]
[1746894186559,0.28056641,655.86,654.52,2.12708346]
[1746894186763,0.28056641,655.86,654.53,0.95220477]
[1746894186960,0.28056641,655.86,654.54,0.95220477]
[1746894187160,0.28056641,655.86,654.55,0.95220477]
[1746894187362,0.28056641,655.86,654.56,0.95220477]
[1746894187559,0.28056641,655.86,654.57,2.12708346]
[1746894187866,0.28056641,655.86,654.58,0.95220477]
[1746894188065,0.28056641,655.86,654.59,0.95220477]
[1746894188266,0.28056641,655.86,654.6,0.95220477]
[1746894188466,0.28056641,655.86,654.61,2.12708346]
[1746894188667,0.28056641,655.86,654.62,0.95220477]
[1746894188867,0.28056641,655.86,654.63,2.12708346]
[1746894189068,0.28056641,655.86,654.64,0.95220477]
[1746894189269,0.28056641,655.86,654.65,0.95220477]
[1746894189462,0.28056641,655.86,654.66,0.95220477]
[1746894189664,0.28056641,655.86,654.67,0.95220477]
[1746894189863,0.28056641,655.86,654.68,0.95368403]
[1746894190169,0.28056641,655.86,654.69,2.12856272]
[1746894190367,0.28056641,655.86,654.7,2.12856272]
[1746894190563,0.28056641,655.86,654.71,0.95368403]
[1746894190767,0.28056641,655.86,654.72,2.12856272]
[1746894190969,0.28056641,655.86,654.73,0.95368403]
[1746894191268,0.28056641,655.86,654.74,2.12856272]
[1746894191466,0.26554446,655.85,654.75,0.95368403]
[1746894191665,0.26554446,655.85,654.76,0.95368403]
[1746894191870,0.26554446,655.85,654.77,0.95368403]
[1746894192066,0.26554446,655.85,654.78,2.12856272]
[1746894192264,0.26554446,655.85,654.79,2.12856272]
[1746894192467,0.28056641,655.84,654.8,0.95368403]
[1746894192667,0.28056641,655.84,654.81,0.95368403]
[1746894192865,0.28056641,655.84,654.82,2.12856272]
[1746894193066,0.28056641,655.84,654.83,0.95368403]
[1746894193267,0.28056641,655.84,654.84,0.95368403]
[1746894193470,0.28056641,655.84,654.85,2.12856272]
[1746894193667,0.28056641,655.84,654.87,0.30540412]
[1746894193874,0.28056641,655.84,654.88,0.95368403]
[1746894194075,0.28056641,655.84,654.89,0.95368403]
[1746894194268,0.28056641,655.84,654.9,2.12856272]
[1746894194574,0.28056641,655.84,654.91,0.95368403]
[1746894194575,0.26553129,655.83,654.91,0.95368403]
[1746894194869,0.26553129,655.83,654.92,0.95368403]
[1746894195074,0.26553129,655.83,654.93,0.95368403]
[1746894195273,0.26553129,655.83,654.94,0.95368403]
[1746894195574,0.28056641,655.82,654.95,1.17487869]
[1746894195974,0.28056641,655.82,654.97,0.30535749]
[1746894196475,0.28056641,655.81,654.97,0.30535749]
[1746894196969,0.28056641,655.8,654.97,0.30535749]
[1746894197171,0.28056641,655.79,654.97,0.30535749]
[1746894197371,0.54620715,655.79,654.97,0.30535749]
[1746894197570,0.28056641,655.78,654.97,0.30535749]
[1746894197971,0.28056641,655.77,654.97,0.30535749]
[1746894198376,0.28056641,655.78,654.97,0.30535749]
[1746894200478,0.26563061,655.77,654.97,0.30535749]
[1746894201277,0.28056641,655.76,654.97,0.30535749]
[1746894201881,0.26563061,655.77,654.97,0.30535749]
[1746894202180,0.28055405,655.76,654.97,0.30535749]
[1746894206181,0.28055405,655.76,654.08,0.97178496]
[1746894206381,0.26564277,655.75,654.09,0.9805624]
[1746894206575,0.54619682,655.75,654.1,2.15995986]
[1746894206779,0.28055405,655.74,654.11,1.24888958]
[1746894206978,0.28055405,655.74,654.12,0.9805624]
[1746894207178,0.28055405,655.73,654.13,0.9805624]
[1746894207376,0.28055405,655.73,654.14,0.9805624]
[1746894207579,0.28055405,655.72,654.15,0.9805624]
[1746894207779,0.28055405,655.72,654.16,0.9805624]
[1746894207979,0.28055405,655.72,654.17,0.9805624]
[1746894208180,0.28055405,655.74,654.18,0.9805624]
[1746894208378,0.28055405,655.74,654.19,1.24888958]
[1746894208676,0.28055405,655.74,654.2,0.9805624]
[1746894208976,0.28055405,655.74,654.21,2.15995986]
[1746894209182,0.28055405,655.74,654.22,0.94019511]
[1746894209485,0.28055405,655.74,654.23,2.11959257]
[1746894209780,0.28055405,655.74,654.24,0.94019511]
[1746894209980,0.28055405,655.74,654.25,2.11959257]
[1746894210174,0.28055405,655.74,654.26,2.11958523]
[1746894210379,0.28055405,655.74,654.27,0.94018777]
[1746894210578,0.28055405,655.74,654.28,2.11958523]
[1746894210779,0.28055405,655.74,654.29,2.11958523]
[1746894210979,0.28055405,655.74,654.3,0.94018777]
[1746894211279,0.28055405,655.74,654.31,2.11958523]
[1746894211575,0.28055405,655.74,654.32,2.11958523]
[1746894211780,0.28055405,655.74,654.33,0.94018777]
[1746894211982,0.28055405,655.74,654.34,0.94018777]
[1746894212182,0.28055405,655.74,654.35,2.11958523]
[1746894212482,0.26561844,655.73,654.36,0.94018777]
[1746894212682,0.26561844,655.73,654.37,2.11958523]
[1746894212876,0.26561844,655.73,654.38,0.94018777]
[1746894213081,0.28055405,655.72,654.39,0.94018777]
[1746894213279,0.28055405,655.72,654.37,1.17939746]
[1746894213280,0.28055405,655.72,654.4,2.11958523]
[1746894213583,0.28055405,655.72,654.41,2.11958523]
[1746894213786,0.28055405,655.72,654.42,0.94018777]
[1746894213984,0.28055405,655.72,654.41,1.17939746]
[1746894213985,0.28055405,655.72,654.43,2.1192749]
[1746894214286,0.26559107,655.81,654.44,0.93987744]
[1746894214480,0.26559107,655.81,654.45,2.1192749]
[1746894214681,0.28055405,655.8,654.46,0.93987744]
[1746894214980,0.28055405,655.8,654.47,0.93987744]
[1746894215284,0.28055405,655.8,654.48,2.1192749]
[1746894215490,0.28055405,655.8,654.49,0.93987744]
[1746894215689,0.28055405,655.8,654.5,0.93987744]
[1746894215887,0.28055405,655.8,654.51,0.93991678]
[1746894216090,0.28055405,655.8,654.52,2.11931424]
[1746894216290,0.28055405,655.8,654.53,0.93991678]
[1746894216590,0.28055405,655.8,654.54,2.11931424]
[1746894216889,0.28055405,655.8,654.55,0.93991678]
[1746894217186,0.28055405,655.8,654.56,2.11931424]
[1746894217389,0.28055405,655.8,654.57,0.93991678]
[1746894217590,0.28055405,655.8,654.56,1.17939746]
[1746894217591,0.28055405,655.8,654.58,0.93991678]
[1746894217787,0.28055405,655.8,654.59,0.93991678]
[1746894217992,0.28055405,655.8,654.6,0.93991678]
[1746894218185,0.28055405,655.8,654.59,1.17939746]
[1746894218186,0.28055405,655.8,654.61,0.93991678]
[1746894218389,0.28055405,655.8,654.62,0.93991678]
[1746894218587,0.26556371,655.81,654.63,0.93991678]
[1746894218786,0.28055405,655.8,654.64,2.11931424]
[1746894219090,0.28055405,655.8,654.65,0.93991678]
[1746894219287,0.28055405,655.8,654.66,0.93991678]
[1746894219492,0.28055405,655.8,654.67,2.1197368]
[1746894219789,0.28055405,655.8,654.68,0.94033934]
[1746894219993,0.28055405,655.8,654.69,2.1197368]
[1746894220192,0.28055405,655.8,654.7,0.94033934]
[1746894220390,0.28055405,655.8,654.71,2.1197368]
[1746894220590,0.28055405,655.8,654.72,0.94033934]
[1746894220792,0.28055405,655.8,654.73,0.94033934]
[1746894220991,0.28055405,655.8,654.74,2.1197368]
[1746894221288,0.28055405,655.8,654.75,0.94033934]
[1746894221493,0.28055405,655.8,654.76,0.94033934]
[1746894221789,0.28055405,655.8,654.77,2.1197368]
[1746894221992,0.28055405,655.8,654.78,0.94033934]
[1746894222190,0.28055405,655.8,654.79,0.94033934]
[1746894222489,0.28055405,655.8,654.8,0.94033934]
[1746894222689,0.28055405,655.8,654.81,0.94033934]
[1746894222889,0.26556371,655.81,654.82,2.1197368]
[1746894223095,0.28054049,655.8,654.83,2.1197368]
[1746894223293,0.28054049,655.8,654.84,0.94033934]
[1746894223488,0.28054049,655.8,654.85,0.94033934]
[1746894223789,0.26556371,655.81,654.86,0.94033934]
[1746894223995,0.26556371,655.81,654.87,0.94033934]
[1746894224189,0.28054054,655.8,654.88,0.94033934]
[1746894224493,0.28054054,655.8,654.89,2.1197368]
[1746894224690,0.28054054,655.8,654.9,0.94033934]
[1746894224894,0.28054054,655.8,654.91,0.94033934]
[1746894225094,0.28054054,655.8,654.92,2.1197368]
[1746894225391,0.28054054,655.8,654.93,0.94033934]
[1746894225595,0.28054054,655.96,654.94,2.1197368]
[1746894225790,0.28054054,655.96,654.95,0.94033934]
[1746894225996,0.28054054,655.96,654.96,0.94033934]
[1746894226290,0.28054054,655.96,654.97,0.94033934]
[1746894226494,0.28054054,655.96,654.98,0.94033934]
[1746894226797,0.28054054,655.96,654.99,2.1197368]
[1746894227095,0.28054054,656.04,655.0,0.94033934]
[1746894227294,0.28054054,656.04,655.01,0.94033934]
[1746894227491,0.2654361,656.14,655.02,0.94033934]
[1746894227794,0.28054054,656.13,655.03,0.94033934]
[1746894227997,0.28054054,656.13,655.04,0.94033934]
[1746894228195,0.28054054,656.13,655.05,0.94033934]
[1746894228496,0.28054054,656.13,655.06,2.1197368]
[1746894228690,0.28054054,656.13,655.07,0.94033934]
[1746894228898,0.28054054,656.13,655.08,2.1197368]
[1746894229091,0.28054054,656.13,655.09,0.94033934]
[1746894229294,0.28054054,656.13,655.08,1.17939746]
[1746894229493,0.28054054,656.13,655.09,1.17939746]
[1746894230092,0.28054054,656.13,655.1,1.17939746]
[1746894230397,0.2654604,656.12,655.11,1.17939746]
[1746894230595,0.28049171,656.11,655.11,1.17939746]
[1746894230796,0.28049171,656.11,655.12,1.17939746]
[1746894230994,0.2654604,656.12,655.12,1.17939746]
[1746894231195,0.2654604,656.12,655.13,1.17939746]
[1746894231396,0.2654604,656.12,654.1,0.97178496]
[1746894231593,0.28049664,656.11,654.11,2.11895496]
[1746894231798,0.28049664,656.11,654.12,0.9396546]
[1746894232000,0.28049664,656.11,654.13,0.9396546]
[1746894232199,0.28049664,656.11,654.14,0.9396546]
[1746894232394,0.28049664,656.11,654.15,2.11895496]
[1746894232594,0.28049664,656.11,654.16,0.9396546]
[1746894232800,0.28049664,656.11,654.17,0.9396546]
[1746894233004,0.28049664,656.11,654.18,2.38707244]
[1746894233301,0.28049664,656.11,654.19,1.20777208]
[1746894233499,0.26554244,656.1,654.2,2.11895496]
[1746894233698,0.26554244,656.1,654.21,2.11895496]
[1746894233900,0.28047927,656.09,654.22,1.20768587]
[1746894234104,0.28047927,656.09,654.23,1.20768587]
[1746894234300,0.28047927,656.09,654.24,0.9396546]
[1746894234501,0.28047927,656.08,654.25,0.9396546]
[1746894234702,0.28047927,656.07,654.26,1.20768587]
[1746894234901,0.28047927,656.06,654.27,1.20768587]
[1746894235205,0.28047927,656.05,654.28,2.38698623]
[1746894235405,0.28047927,656.04,654.29,2.38698623]
[1746894235705,0.28047927,656.03,654.3,1.20768587]
[1746894235904,0.28047927,656.02,654.31,1.20768587]
[1746894236102,0.28047927,656.02,654.32,2.11895496]
[1746894236408,0.54601056,656.01,654.33,0.9396546]
[1746894236707,0.28047927,656.0,654.34,2.38698623]
[1746894236903,0.28047927,655.99,654.35,0.9396546]
[1746894237104,0.28047927,655.99,654.36,0.9396546]
[1746894237305,0.28047927,655.98,654.37,0.9396546]
[1746894237505,0.28047927,655.97,654.38,1.20768587]
[1746894237703,0.28047927,656.0,654.39,2.38698623]
[1746894237904,0.28047927,656.0,654.4,1.20768587]
[1746894238106,0.28047927,656.0,654.41,0.9396546]
[1746894238307,0.28047927,656.0,654.42,0.9396546]
[1746894238606,0.28047927,656.0,654.43,1.20768587]
[1746894238908,0.28047927,656.0,654.44,2.38698623]
[1746894239102,0.28047927,656.0,654.45,0.9396546]
[1746894239301,0.28047927,656.0,654.46,0.9396546]
[1746894239602,0.26551508,656.03,654.47,1.20699037]
[1746894239802,0.28047927,655.99,654.48,0.9389591]
[1746894240001,0.28047927,655.99,654.47,1.44733163]
[1746894240002,0.28047927,656.02,654.49,1.20699037]
[1746894240306,0.28047927,656.02,654.5,2.11825946]
[1746894240507,0.28047927,656.02,654.51,0.93882643]
[1746894240802,0.28047927,656.02,654.52,0.93882643]
[1746894241005,0.28047927,656.02,654.53,0.93882643]
[1746894241203,0.28047927,656.02,654.54,0.93882643]
[1746894241407,0.28047927,656.02,654.55,0.93882643]
[1746894241608,0.28047927,656.02,654.56,0.93882643]
[1746894241805,0.28047927,656.02,654.57,0.93882643]
[1746894242005,0.28047927,656.02,654.58,2.11812679]
[1746894242206,0.28047927,656.02,654.59,0.93882643]
[1746894242407,0.26550901,656.01,654.61,0.30552542]
[1746894242612,0.28047927,656.0,654.62,2.11812679]
[1746894242804,0.28047927,656.0,654.63,0.93882643]
[1746894243004,0.28047927,656.0,654.64,2.11812679]
[1746894243208,0.28047927,656.0,654.65,0.93882643]
[1746894243410,0.28047927,656.0,654.66,0.93867927]
[1746894243610,0.28047927,656.0,654.67,0.93867927]
[1746894243808,0.26550901,656.01,654.68,2.11797963]
[1746894244005,0.26550901,656.01,654.69,0.93867927]
[1746894244205,0.28046957,656.0,654.7,0.93867927]
[1746894244409,0.28046957,656.0,654.71,2.11797963]
[1746894244607,0.28046957,656.0,654.72,0.93867927]
[1746894244810,0.28046957,656.0,654.73,0.93867927]
[1746894245008,0.28046957,656.0,654.74,0.93867927]
[1746894245209,0.28046957,656.0,654.75,2.11797963]
[1746894245410,0.26549483,655.99,654.76,0.93867927]
[1746894245609,0.28046957,655.98,654.77,0.93873377]
[1746894245814,0.28046957,655.98,654.78,0.93873377]
[1746894246108,0.28046957,655.98,654.79,0.93873377]
[1746894246312,0.28046957,655.98,654.8,0.93873377]
[1746894246508,0.28046957,655.98,654.81,0.93873377]
[1746894246709,0.28046957,655.98,654.82,0.93873377]
[1746894246913,0.28046957,655.98,654.83,0.93873377]
[1746894247214,0.28046957,655.98,654.84,2.11803413]
[1746894247411,0.26549483,655.99,654.85,0.93873377]
[1746894247612,0.28045753,655.98,654.86,0.93873377]
[1746894247814,0.28045753,655.98,654.87,0.93873377]
[1746894248014,0.26538651,656.09,654.88,2.11803413]
[1746894248213,0.26538651,656.09,654.89,0.93873377]
[1746894248414,0.28045753,656.08,654.9,0.93873377]
[1746894248615,0.28045753,656.08,654.91,0.93873377]
[1746894248911,0.28045753,656.08,654.92,2.11803413]
[1746894249124,0.28045753,656.08,654.93,0.93873377]
[1746894249316,0.28045753,656.08,654.94,2.11803413]
[1746894249509,0.28045753,656.08,654.95,0.93826886]
[1746894249810,0.28045753,656.08,654.96,2.11756922]
[1746894250010,0.28045753,656.08,654.97,0.93826886]
[1746894250216,0.28045753,656.08,654.98,0.93826886]
[1746894250412,0.28045753,656.08,654.99,2.11756922]
[1746894250613,0.28045753,656.08,655.0,0.93826886]
[1746894250913,0.28045753,656.08,655.01,2.11756922]
[1746894251115,0.28045753,656.08,655.02,2.11756922]
[1746894251314,0.28045753,656.8,655.03,0.93826886]
[1746894251512,0.28045753,656.8,655.02,1.17930036]
[1746894251513,0.26535716,656.12,655.04,0.93826886]
[1746894251711,0.26535716,656.12,655.05,0.93826886]
[1746894251909,0.28045753,656.79,655.02,1.17930036]
[1746894251910,0.28045753,656.11,655.06,0.93826886]
[1746894252114,0.28045753,656.11,655.07,2.11756922]
[1746894252314,0.28045753,656.11,655.08,0.93826886]
[1746894252513,0.28045753,656.11,655.09,0.93826886]
[1746894252715,0.28045753,656.11,655.1,2.11756922]
[1746894252916,0.28045753,656.11,655.11,2.11707054]
[1746894253115,0.28045753,656.11,655.11,1.17930036]
[1746894253416,0.28045753,656.11,655.12,0.93765108]
[1746894253612,0.28045753,656.11,655.13,1.17930036]
[1746894253912,0.28045753,656.11,655.14,0.93718629]
[1746894254117,0.28045753,656.11,655.15,2.11648665]
[1746894254317,0.26539157,656.24,655.16,0.93718629]
[1746894254516,0.26539157,656.24,655.17,2.11648665]
[1746894254716,0.28045753,656.23,655.18,0.93718629]
[1746894254912,0.28045753,656.23,655.19,2.11648665]
[1746894255112,0.28045753,656.23,655.2,0.93718629]
[1746894255315,0.28045753,656.23,655.21,2.11648665]
[1746894255516,0.28045753,656.23,655.22,0.93718629]
[1746894255712,0.28045753,656.23,655.21,1.17930036]
[1746894255918,0.28045753,656.23,655.22,0.93655339]
[1746894256115,0.28045753,656.23,655.21,1.17930036]
[1746894256313,0.28045753,656.23,655.22,0.93633717]
[1746894256513,0.28045753,656.23,655.22,1.17930036]
[1746894257013,0.28045753,656.23,655.23,1.17930036]
[1746894257417,0.26537538,656.22,655.23,1.17930036]
[1746894257617,0.26537538,656.22,655.25,0.30522701]
[1746894257816,0.28045753,656.21,655.25,0.30522701]
[1746894258013,0.28045753,656.21,655.26,1.17930036]
[1746894258620,0.28045753,656.21,655.27,1.17930036]
[1746894259320,0.28045753,656.21,655.28,1.17930036]
[1746894259514,0.28045753,656.21,655.3,0.30520372]
[1746894260125,0.28045753,656.21,655.31,1.17930036]
[1746894260514,0.26538651,656.2,655.3,0.30520372]
[1746894260819,0.28045753,656.19,655.3,0.30520372]
[1746894261814,0.28045753,656.18,655.3,0.30520372]
[1746894262219,0.28045753,656.17,655.3,0.30520372]
[1746894262820,0.28045753,656.16,655.3,0.30520372]
[1746894263319,0.28045753,656.15,655.3,0.30520372]
[1746894263519,0.28045753,656.14,655.3,0.30520372]
[1746894263819,0.26555459,656.15,655.3,0.30520372]
[1746894263820,0.28045753,656.13,655.3,0.30520372]
[1746894264315,0.28045753,656.12,655.3,0.30520372]
[1746894264615,0.28045753,656.11,655.3,0.30520372]
[1746894265121,0.28045753,656.1,655.3,0.30520372]
[1746894265521,0.28045753,656.09,655.3,0.30520372]
[1746894265921,0.28045753,656.08,655.3,0.30520372]
[1746894266314,0.28045753,656.07,655.3,0.30520372]
[1746894266518,0.54603746,656.07,655.3,0.30520372]
[1746894267016,0.28045753,656.06,655.3,0.30520372]
[1746894267519,0.28045753,656.05,655.3,0.30520372]
[1746894267821,0.28045753,656.04,655.3,0.30520372]
[1746894268117,0.28045753,656.03,655.3,0.30520372]
[1746894268722,0.28045753,656.02,655.3,0.30520372]
[1746894268923,0.28045753,656.01,655.3,0.30520372]
[1746894269322,0.28045753,656.0,655.3,0.30520372]
[1746894269525,0.28045753,655.99,655.3,0.30520372]
[1746894269923,0.28045753,655.98,655.3,0.30520372]
[1746894270126,0.28045753,655.99,655.3,0.30520372]
[1746894270523,0.28045753,655.98,655.3,0.30520372]
[1746894271224,0.28045753,655.97,655.3,0.30520372]
[1746894271924,0.28045753,655.99,655.3,0.30520372]
[1746894272427,0.2656154,655.98,655.3,0.30520372]
[1746894272822,0.28045753,655.97,655.3,0.30520372]
[1746894274628,0.28045753,655.97,653.82,0.97178496]
[1746894274826,0.28045753,655.97,653.83,0.93897844]
[1746894275036,0.28045753,655.96,653.84,1.20727093]
[1746894275326,0.28045753,655.96,653.85,0.93897844]
[1746894275526,0.28045753,655.95,653.86,0.93897844]
[1746894275728,0.28045753,655.95,653.87,0.93897844]
[1746894275923,0.28045753,655.94,653.88,0.93897844]
[1746894276127,0.28045753,655.94,653.89,0.93897844]
[1746894276330,0.28045753,655.94,653.9,0.93897844]
[1746894276528,0.28045753,655.93,653.91,2.15368315]
[1746894276727,0.28045753,655.93,653.92,0.93897844]
[1746894276930,0.28045753,655.92,653.93,0.93897844]
[1746894277225,0.28045753,655.97,653.94,1.20727093]
[1746894277428,0.28045753,655.97,653.95,2.42197564]
[1746894277625,0.28045753,655.97,653.96,0.93897844]
[1746894277925,0.28045753,655.97,653.97,0.93868012]
[1746894278129,0.28045753,655.97,653.98,0.93868012]
[1746894278333,0.28045753,655.97,653.99,0.93868012]
[1746894278530,0.28045753,655.97,654.0,0.93868012]
[1746894278730,0.28045753,655.97,654.01,1.20697261]
[1746894279025,0.28045753,655.97,654.02,0.93868012]
[1746894279229,0.28045753,655.97,654.03,0.93868012]
[1746894279428,0.28045753,655.97,654.04,2.15338483]
[1746894279625,0.28045753,655.97,654.05,2.15338483]
[1746894279827,0.28045753,655.97,654.06,1.20697261]
[1746894280026,0.28045753,655.97,654.07,2.15338483]
[1746894280332,0.28045753,655.97,654.08,0.93868012]
[1746894280531,0.28045753,655.97,654.09,0.93868012]
[1746894280727,0.28045753,655.97,654.1,2.15338483]
[1746894280932,0.28045753,655.97,654.11,2.15338483]
[1746894281233,0.28045753,655.97,654.12,0.93868012]
[1746894281429,0.26559411,655.96,654.13,0.93868012]
[1746894281732,0.26559411,655.96,654.14,0.93844421]
[1746894281932,0.28045753,655.95,654.15,0.93844421]
[1746894282228,0.28045753,655.95,654.14,1.21470471]
[1746894282229,0.28045753,655.95,654.16,0.93844421]
[1746894282431,0.28045753,655.95,654.17,0.93844421]
[1746894282633,0.28045753,655.95,654.18,0.93844421]
[1746894282931,0.28045753,655.95,654.19,0.93844421]
[1746894283133,0.28045753,655.95,654.2,2.15314892]
[1746894283333,0.28045753,655.95,654.21,0.93844421]
[1746894283530,0.28045753,655.95,654.22,2.15314892]
[1746894283732,0.28045753,655.95,654.23,0.93844421]
[1746894283930,0.28045753,655.95,654.24,0.93844421]
[1746894284132,0.28045753,655.95,654.25,0.93844421]
[1746894284330,0.28045753,655.95,654.26,2.15314892]
[1746894284631,0.28045753,655.95,654.27,0.93844421]
[1746894284632,0.26560121,655.94,654.27,0.93844421]
[1746894284836,0.26560121,655.94,654.28,0.93844421]
[1746894285137,0.26560121,655.94,654.29,2.15269377]
[1746894285337,0.28045753,655.93,654.3,0.93798906]
[1746894285537,0.28045753,655.93,654.31,2.15269377]
[1746894285739,0.28045753,655.93,654.32,0.93798906]
[1746894285933,0.28045753,655.93,654.33,0.93798906]
[1746894286137,0.28045753,655.93,654.34,2.15269377]
[1746894286434,0.28045753,655.93,654.35,0.93798906]
[1746894286737,0.28045753,655.93,654.36,0.93798906]
[1746894286931,0.28045753,655.93,654.37,0.93798906]
[1746894287138,0.28045753,655.93,654.38,0.93798906]
[1746894287433,0.26559614,655.92,654.39,2.15259909]
[1746894287637,0.28045753,655.91,654.4,0.93789438]
[1746894287837,0.28045753,655.91,654.41,0.93789438]
[1746894288137,0.28045753,655.91,654.42,2.15259909]
[1746894288336,0.28045753,655.91,654.43,0.93789438]
[1746894288538,0.28045753,655.91,654.44,0.93789438]
[1746894288836,0.28045753,655.91,654.45,0.93789438]
[1746894289140,0.28045753,655.91,654.46,2.1525277]
[1746894289339,0.28045753,655.91,654.47,0.93782299]
[1746894289538,0.28045753,655.91,654.48,2.1525277]
[1746894289738,0.28045753,655.91,654.49,0.93782299]
[1746894289938,0.28045753,655.91,654.5,0.93782299]
[1746894290241,0.28045753,655.91,654.51,0.93782299]
[1746894290435,0.26558499,655.9,654.52,0.93782299]
[1746894290735,0.26558499,655.9,654.53,0.93782299]
[1746894290932,0.26558499,655.9,654.54,0.93782299]
[1746894291136,0.28045753,655.89,654.55,0.93782299]
[1746894291334,0.28045753,655.89,654.56,0.93782299]
[1746894291538,0.28045753,655.89,654.57,0.93782299]
[1746894291741,0.28045753,655.89,654.58,2.1525277]
[1746894292040,0.28045753,655.89,654.59,2.1525277]
[1746894292240,0.28045753,655.89,654.6,0.93782299]
[1746894292441,0.28045753,655.89,654.61,0.93782299]
[1746894292637,0.28045753,655.89,654.62,2.1525277]
[1746894292841,0.28045753,655.88,654.63,0.93761794]
[1746894293140,0.28045753,655.87,654.64,0.93761794]
[1746894293340,0.28045753,655.87,654.65,2.15232265]
[1746894293540,0.28045753,655.86,654.66,0.93761794]
[1746894293741,0.28045753,655.86,654.67,2.15232265]
[1746894293939,0.28045753,655.85,654.68,2.15232265]
[1746894294138,0.28045753,655.85,654.69,0.93761794]
[1746894294441,0.28045753,655.84,654.7,2.15232265]
[1746894294741,0.28045753,655.84,654.7,1.21470471]
[1746894295042,0.28045753,655.83,654.7,1.21470471]
[1746894295334,0.28045753,655.83,654.71,1.21470471]
[1746894295541,0.28045753,655.86,654.71,1.21470471]
[1746894295841,0.28045753,655.86,654.72,1.21470471]
[1746894296541,0.26558398,655.85,654.73,1.21470471]
[1746894296842,0.26558398,655.85,654.74,1.21470471]
[1746894297238,0.28045753,655.84,653.81,0.97178496]
[1746894297443,0.28045753,655.84,653.82,0.93758387]
[1746894297643,0.28045753,655.84,653.83,0.93758387]
[1746894297839,0.28045753,655.84,653.84,2.15066316]
[1746894298043,0.28045753,655.84,653.85,0.93754283]
[1746894298243,0.28045753,655.84,653.86,0.93754283]
[1746894298544,0.28045753,655.84,653.87,0.93754283]
[1746894298745,0.26558398,655.85,653.88,2.15062212]
[1746894299043,0.28065804,655.84,653.89,1.20593071]
[1746894299243,0.28065804,655.84,653.9,0.93754283]
[1746894299444,0.28065804,655.84,653.91,0.93754283]
[1746894299749,0.28065804,655.84,653.92,0.9371483]
[1746894299938,0.28065804,655.84,653.93,2.15022759]
[1746894300139,0.28065804,655.84,653.94,0.9371483]
[1746894300341,0.28065804,655.84,653.95,0.93717484]
[1746894300536,0.28065804,655.84,653.96,0.93717484]
[1746894300741,0.28065804,655.84,653.97,0.93717484]
[1746894300941,0.28065804,655.84,653.98,0.93717484]
[1746894301245,0.28065804,655.83,653.99,2.15025413]
[1746894301446,0.28065804,655.83,654.0,2.15025413]
[1746894301642,0.28065804,655.83,654.01,0.93715937]
[1746894301847,0.28065804,655.82,654.02,0.93715937]
[1746894302045,0.28065804,655.81,654.03,0.93715937]
[1746894302246,0.28065804,655.81,654.04,0.93715937]
[1746894302440,0.54637485,655.8,654.06,0.30578234]
[1746894302640,0.28065804,655.79,654.07,0.93715937]
[1746894302845,0.28065804,655.79,654.08,2.15023866]
[1746894303041,0.26571681,655.8,654.09,0.93715937]
[1746894303042,0.28065804,655.78,654.09,0.93715937]
[1746894303347,0.28065804,655.77,654.11,0.30575897]
[1746894303547,0.28065804,655.77,654.12,2.15023866]
[1746894303747,0.28065804,655.76,654.13,0.93715937]
[1746894304045,0.28065804,655.76,654.14,1.21307929]
[1746894304246,0.28065804,655.75,654.14,1.21307929]
[1746894304447,0.28065804,655.75,654.15,1.21307929]
[1746894304647,0.28065804,655.74,654.15,1.21307929]
[1746894304948,0.28065804,655.73,654.15,1.21307929]
[1746894305148,0.28065804,655.73,654.16,1.21307929]
[1746894305345,0.28065804,655.72,654.16,1.21307929]
[1746894305545,0.28065804,655.72,654.17,1.21307929]
[1746894305746,0.28065804,655.71,654.17,1.21307929]
[1746894305950,0.28065804,655.7,654.17,1.21307929]
[1746894306249,0.28065804,655.69,654.18,1.21307929]
[1746894306449,0.28065804,655.69,654.19,1.21307929]
[1746894306750,0.28065804,655.68,654.19,1.21307929]
[1746894307049,0.28065804,655.67,654.2,1.21307929]
[1746894307246,0.28065804,655.67,654.21,1.21307929]
[1746894307445,0.28065804,655.66,654.21,1.21307929]
[1746894307648,0.28065804,655.65,654.22,1.21307929]
[1746894307847,0.28065804,655.65,654.23,0.93404236]
[1746894308143,0.28065804,655.64,654.24,2.14712165]
[1746894308348,0.28065804,655.64,654.25,0.93404236]
[1746894308549,0.28065804,655.63,654.25,0.93404236]
[1746894308754,0.28065804,655.62,654.25,0.93404236]
[1746894308955,0.28065804,655.62,654.26,0.93389282]
[1746894309153,0.28065804,655.62,654.27,0.93389282]